fUSD/lending_fUSD_20251112
["ID","MTS","AMOUNT","RATE_DAILY","PERIOD"]
[393749714,1762962659711,-151.0,0.00040456,120]
[393749715,1762962659720,-151.0,0.00040456,120]
[393749716,1762962659729,-151.0,0.00040456,120]
[393749717,1762962659739,-161.563541,0.00040456,120]
[393749718,1762962659748,-301.999999,0.00040456,120]
[393749719,1762962659757,-500.0,0.00040456,20]
[393749720,1762962659766,-500.0,0.00040456,20]
[393749721,1762962659775,-151.0,0.00040456,120]
[393749722,1762962659784,-500.0,0.00040456,20]
[393749723,1762962659794,-500.0,0.00040456,20]
[393749724,1762962659804,-500.0,0.00040456,20]
[393749725,1762962659813,-151.000001,0.00040456,120]
[393749726,1762962659824,-500.0,0.00040456,20]
[393749727,1762962659834,-500.0,0.00040456,20]
[393749728,1762962659844,-500.0,0.00040456,20]
[393749729,1762962659853,-157.046074,0.00040456,120]
[393749730,1762962659863,-500.0,0.00040456,20]
[393749731,1762962659873,-267.30719057,0.00040456,20]
[393749732,1762962659883,-500.0,0.00040456,20]
[393749733,1762962659893,-500.0,0.00040456,20]
[393749734,1762962659904,-151.0,0.00040456,120]
[393749735,1762962659914,-500.0,0.00040456,20]
[393749736,1762962659924,-500.0,0.00040456,20]
[393749737,1762962659934,-151.0,0.00040456,120]
[393749738,1762962659944,-500.0,0.00040456,20]
[393749739,1762962659954,-500.0,0.00040456,20]
[393749740,1762962659964,-119.97726593,0.00040456,20]
[393749741,1762962661348,200.0,0.00040456,30]
[393749748,1762962726703,195.81513892,0.00040456,120]
[393749749,1762962728223,151.0,0.00040456,120]
[393749750,1762962728389,500.0,0.00040456,120]
[393749751,1762962728821,151.0,0.00040456,120]
[393749752,1762962729009,500.0,0.00040456,120]
[393749753,1762962729480,151.0,0.00040456,120]
[393749754,1762962729612,500.0,0.00040456,120]
[393749755,1762962730149,151.0,0.00040456,120]
[393749756,1762962730211,500.0,0.00040456,120]
[393749757,1762962730753,151.0,0.00040456,120]
[393749758,1762962730850,500.0,0.00040456,120]
[393749759,1762962731401,151.0,0.00040456,120]
[393749760,1762962731489,500.0,0.00040456,120]
[393749761,1762962731598,196.0098705,0.00040456,120]
[393749762,1762962732015,151.0,0.00040456,120]
[393749763,1762962732090,500.0,0.00040456,120]
[393749764,1762962732645,151.0,0.00040456,120]
[393749765,1762962732757,500.0,0.00040456,120]
[393749766,1762962733213,500.0,0.00040456,120]
[393749767,1762962733262,151.0,0.00040456,120]
[393749768,1762962733387,500.0,0.00040456,120]
[393749769,1762962733850,500.0,0.00040456,120]
[393749770,1762962733989,500.0,0.00040456,120]
[393749771,1762962734036,151.0,0.00040456,120]
[393749772,1762962734602,500.0,0.00040456,120]
[393749773,1762962734656,151.0,0.00040456,120]
[393749774,1762962734707,500.0,0.00040456,120]
[393749775,1762962735327,500.0,0.00040456,120]
[393749776,1762962735940,200.0,0.00040456,30]
[393749777,1762962735989,500.0,0.00040456,120]
[393749778,1762962736561,207.4,0.00040456,30]
[393749779,1762962736614,500.0,0.00040456,120]
[393749780,1762962737239,215.0738,0.00040456,30]
[393749781,1762962737344,500.0,0.00040456,120]
[393749782,1762962738023,223.0315306,0.00040456,30]
[393749783,1762962738071,500.0,0.00040456,120]
[393749784,1762962738461,231.28369723,0.00040456,30]
[393749785,1762962738570,500.0,0.00040456,120]
[393749786,1762962739072,239.84119403,0.00040456,30]
[393749787,1762962739335,500.0,0.00040456,120]
[393749788,1762962739674,248.71531821,0.00040456,30]
[393749789,1762962739946,500.0,0.00040456,120]
[393749790,1762962740398,257.91778498,0.00040456,30]
[393749791,1762962741016,267.46074303,0.00040456,30]
[393749792,1762962741444,414.0,0.00040456,120]
[393749793,1762962741653,267.46074303,0.00040456,30]
[393749794,1762962742040,429.318,0.00040456,120]
[393749795,1762962742664,445.202766,0.00040456,120]
[393749796,1762962746411,200.0,0.00040456,30]
[393749797,1762962746774,300.0,0.00040456,30]
[393749798,1762962768694,214.2,0.00040456,30]
[393749799,1762962964274,200.0,0.00040457,30]
[393749800,1762962970435,462.277407,0.00040457,90]
[393749801,1762963027669,155.50531108,0.00040457,120]
[393749802,1762963045216,200.0,0.00040457,30]
[393749803,1762963045789,300.0,0.00040457,30]
[393749805,1762963261799,200.0,0.00040457,30]
[393749806,1762963343459,200.0,0.00040459,30]
[393749807,1762963343945,300.0,0.00040459,30]
[393749808,1762963364726,150.0,0.00040459,30]
[393749809,1762963397811,474.62226087,0.00040459,120]
[393749810,1762963409799,500.0,0.00040459,120]
[393749811,1762963422531,367.88833448,0.00040459,120]
[393749812,1762963472798,-602.11298722,0.00025,2]
[393749813,1762963480408,161.02,0.0001903,2]
[393749814,1762963561040,200.0,0.00040459,30]
[393749815,1762963683662,4935356.24087295,0.00030137,120]
[393749816,1762963796445,1000.0,0.0002,2]
[393749820,1762963832338,-414.0,0.00020858,2]
[393749821,1762963832348,-40.40051353,0.00020858,2]
[393749822,1762963832415,-120.61948647,0.00020858,2]
[393749823,1762963832425,-612.45366065,0.00022587,2]
[393749824,1762963832438,-161.02,0.00022687,2]
[393749825,1762963832448,-131.47450989,0.00022944,2]
[393749826,1762963832588,-118.52549011,0.00022944,2]
[393749827,1762963832598,-161.02,0.00024515,2]
[393749828,1762963832608,-161.02,0.00026343,2]
[393749829,1762963832618,-1048.25489795,0.00026343,2]
[393749830,1762963832627,-187.15161929,0.00028072,2]
[393749831,1762963832637,-161.02,0.00028172,2]
[393749832,1762963832649,-178.73,0.00029306,2]
[393749833,1762963832658,-8.4411175,0.0003,2]
[393749867,1762963839948,-152.5788825,0.0003,2]
[393749868,1762963839958,-196.0,0.0003081,120]
[393749869,1762963839973,-161.02,0.00031828,2]
[393749870,1762963839983,-150.0,0.00031958,2]
[393749871,1762963839992,-196.0,0.00032351,120]
[393749872,1762963840001,-269.65,0.0003328,2]
[393749873,1762963840011,-161.02,0.00033657,2]
[393749874,1762963840020,-298.22613208,0.00033758,30]
[393749875,1762963840030,-196.0,0.00033968,120]
[393749876,1762963840040,-901.0,0.00034519,3]
[393749877,1762963840050,-6.98425884,0.00034899,120]
[393749878,1762963840062,-199.41121217,0.00034899,120]
[393749879,1762963840072,-311.68878783,0.00034904,2]
[393749880,1762963840096,-188.31121217,0.00034904,2]
[393749881,1762963840106,-665.62664634,0.00035258,2]
[393749882,1762963840117,-110.01525266,0.00035258,2]
[393749883,1762963840127,-313.88228226,0.00035434,3]
[393749884,1762963840166,-586.9117412,0.00035434,3]
[393749885,1762963840180,-0.20597654,0.00035434,3]
[393749886,1762963840190,-252.04552146,0.00035434,3]
[393749887,1762963840203,-147.95447854,0.00035434,3]
[393749888,1762963840220,-400.0,0.00035434,3]
[393749889,1762963840230,-5844.94,0.00035435,2]
[393749890,1762963840241,-161.02,0.00035485,2]
[393749891,1762963840251,-196.0,0.00035667,120]
[393749892,1762963840262,-300.0,0.000358,13]
[393749893,1762963840275,-700.0,0.000359,13]
[393749894,1762963840287,-158.43628725,0.000359,15]
[393749895,1762963840298,-308.26157328,0.000359,2]
[393749896,1762963840309,-500.0,0.00035973,5]
[393749897,1762963840319,-500.68799219,0.00035973,5]
[393749898,1762963840330,-500.0,0.00035973,5]
[393749899,1762963840340,-500.0,0.00035973,5]
[393749900,1762963840350,-500.0,0.00035973,5]
[393749901,1762963840361,-411.26555742,0.00035973,5]
[393749902,1762963840371,-695.88,0.0003598,2]
[393749903,1762963840381,-695.88,0.0003598,2]
[393749904,1762963840394,-695.88,0.0003598,2]
[393749906,1762963840405,-695.88,0.0003598,2]
[393749908,1762963840416,-695.88,0.0003598,2]
[393749910,1762963840427,-500.0,0.00035989,2]
[393749912,1762963840437,-515.57477662,0.00035989,15]
[393749914,1762963840447,-500.0,0.00035989,15]
[393749916,1762963840458,-166.537142,0.00035989,2]
[393749918,1762963840476,-500.0,0.00035989,15]
[393749920,1762963840486,-500.0,0.00035989,15]
[393749922,1762963840497,-500.0,0.00035989,15]
[393749924,1762963840507,-500.0,0.00035989,15]
[393749926,1762963840518,-500.0,0.00035989,15]
[393749928,1762963840529,-500.0,0.00035989,15]
[393749930,1762963840540,-500.0,0.00035989,15]
[393749932,1762963840553,-215.33153084,0.00035989,15]
[393749934,1762963840565,-500.0,0.00035989,15]
[393749957,1762963840576,-500.0,0.00035989,15]
[393749959,1762963840808,-500.0,0.00035989,15]
[393749961,1762963840818,-500.0,0.00035989,15]
[393749963,1762963840828,-500.0,0.00035989,15]
[393749965,1762963840837,-572.45532558,0.00035989,15]
[393749967,1762963840846,-500.0,0.00035989,15]
[393749969,1762963840856,-500.0,0.00035989,15]
[393749971,1762963840866,-500.0,0.00035989,15]
[393749973,1762963840876,-500.0,0.00035989,15]
[393749975,1762963840887,-500.0,0.00035989,15]
[393749977,1762963840897,-500.0,0.00035989,15]
[393749979,1762963840908,-500.0,0.00035989,15]
[393749981,1762963840918,-500.0,0.00035989,15]
[393749983,1762963840929,-500.0,0.00035989,15]
[393749985,1762963840939,-500.0,0.00035989,15]
[393749987,1762963840949,-500.0,0.00035989,15]
[393749989,1762963840959,-500.0,0.00035989,15]
[393749991,1762963840975,-500.0,0.00035989,15]
[393749993,1762963840985,-500.0,0.00035989,15]
[393749995,1762963840995,-500.0,0.00035989,15]
[393749997,1762963841005,-500.0,0.00035989,15]
[393749999,1762963841015,-500.0,0.00035989,15]
[393750001,1762963841025,-500.0,0.00035989,15]
[393750003,1762963841035,-500.0,0.00035989,15]
[393750005,1762963841045,-500.0,0.00035989,15]
[393750008,1762963841056,-500.0,0.00035989,15]
[393750011,1762963841067,-500.0,0.00035989,15]
[393750013,1762963841078,-500.0,0.00035989,15]
[393750015,1762963841088,-500.0,0.00035989,15]
[393750017,1762963841098,-500.0,0.00035989,15]
[393750019,1762963841107,-500.0,0.00035989,15]
[393750021,1762963841117,-500.0,0.00035989,15]
[393750023,1762963841127,-500.0,0.00035989,15]
[393750025,1762963841139,-500.0,0.00035989,15]
[393750027,1762963841149,-500.0,0.00035989,15]
[393750029,1762963841159,-500.0,0.00035989,15]
[393750031,1762963841170,-500.0,0.00035989,15]
[393750033,1762963841180,-500.0,0.00035989,15]
[393750035,1762963841190,-500.0,0.00035989,15]
[393750038,1762963841200,-500.0,0.00035989,15]
[393750040,1762963841210,-500.0,0.00035989,15]
[393750041,1762963841226,-500.0,0.00035989,15]
[393750043,1762963841236,-500.0,0.00035989,15]
[393750045,1762963841246,-500.0,0.00035989,15]
[393750047,1762963841256,-500.0,0.00035989,15]
[393750049,1762963841266,-500.0,0.00035989,15]
[393750051,1762963841276,-500.0,0.00035989,15]
[393750053,1762963841285,-500.0,0.00035989,15]
[393750055,1762963841296,-500.0,0.00035989,15]
[393750057,1762963841305,-500.0,0.00035989,15]
[393750058,1762963841315,-500.0,0.00035989,15]
[393750059,1762963841327,-500.0,0.00035989,15]
[393750060,1762963841336,-500.0,0.00035989,15]
[393750061,1762963841347,-500.0,0.00035989,15]
[393750062,1762963841357,-650.0,0.00035989,15]
[393750063,1762963841367,-500.0,0.00035989,15]
[393750064,1762963841376,-500.0,0.00035989,15]
[393750065,1762963841387,-500.0,0.00035989,15]
[393750066,1762963841397,-500.0,0.00035989,15]
[393750067,1762963841408,-500.0,0.00035989,15]
[393750068,1762963841417,-500.0,0.00035989,15]
[393750069,1762963841427,-500.0,0.00035989,15]
[393750070,1762963841436,-500.0,0.00035989,15]
[393750071,1762963841446,-500.0,0.00035989,15]
[393750072,1762963841456,-500.0,0.00035989,15]
[393750073,1762963841471,-500.0,0.00035989,15]
[393750074,1762963841482,-500.0,0.00035989,15]
[393750076,1762963841492,-500.0,0.00035989,15]
[393750077,1762963841502,-500.0,0.00035989,15]
[393750079,1762963841512,-500.0,0.00035989,15]
[393750081,1762963841522,-500.0,0.00035989,15]
[393750083,1762963841533,-500.0,0.00035989,15]
[393750084,1762963841543,-500.0,0.00035989,15]
[393750085,1762963841555,-200.0,0.00035989,15]
[393750086,1762963841565,-500.0,0.00035989,15]
[393750087,1762963841576,-500.0,0.00035989,15]
[393750088,1762963841589,-232880.950336,0.0003599,3]
[393750089,1762963841599,-306365.911471,0.0003599,3]
[393750090,1762963841608,-500.0,0.0003599,30]
[393750091,1762963841618,-663.86563797,0.0003599,2]
[393750092,1762963841629,-150.31,0.0003599,2]
[393750093,1762963841639,-421.34694247,0.00035999,15]
[393750094,1762963841649,-388.24493355,0.00035999,15]
[393750095,1762963841661,-500.0,0.00035999,15]
[393750096,1762963841671,-194.6324567,0.00035999,15]
[393750097,1762963841680,-500.0,0.00035999,15]
[393750098,1762963841690,-500.0,0.00035999,15]
[393750099,1762963841700,-408.96839082,0.00035999,15]
[393750100,1762963841710,-163.75,0.00035999,14]
[393750101,1762963841723,-1006.54897743,0.00035999,30]
[393750102,1762963841733,-1006.54897743,0.00035999,30]
[393750103,1762963841742,-1006.54897743,0.00035999,30]
[393750104,1762963841753,-1098.05342992,0.00035999,30]
[393750105,1762963841763,-1098.05342992,0.00035999,30]
[393750106,1762963841773,-1098.05342992,0.00035999,30]
[393750107,1762963841783,-1526800.0,0.00036,30]
[393750108,1762963841793,-1069.09,0.00036,2]
[393750109,1762963841802,-955.62,0.00036,30]
[393750110,1762963841812,-884.21,0.00036,14]
[393750111,1762963841822,-2506.96,0.00036217,2]
[393750112,1762963841831,-308.26157322,0.00036395,2]
[393750113,1762963841841,-158.43628725,0.00036537,15]
[393750114,1762963841851,-1069.09,0.0003672,2]
[393750115,1762963841861,-2516.08,0.00036725,2]
[393750116,1762963841870,-308.26157322,0.0003689,2]
[393750117,1762963841880,-500.0,0.00037014,2]
[393750118,1762963841889,-158.43628725,0.00037173,15]
[393750119,1762963841899,-161.02,0.00037313,2]
[393750120,1762963841908,-1000.0,0.00037342,2]
[393750121,1762963841918,-308.26157322,0.00037385,2]
[393750122,1762963841928,-465.158,0.00037501,48]
[393750123,1762963841938,-2445.42,0.00037501,2]
[393750124,1762963841948,-1098.05342992,0.00037501,30]
[393750125,1762963841958,-68145.55,0.00037502,30]
[393750126,1762963841971,-615.21991021,0.00037573,5]
[393750127,1762963841981,-151.27,0.00037717,60]
[393750128,1762963841991,-156.5,0.00037731,120]
[393750129,1762963842001,-150.0,0.00037792,2]
[393750130,1762963842011,-158.43628725,0.0003781,15]
[393750131,1762963842021,-151.27,0.00037817,60]
[393750132,1762963842030,-308.26157322,0.0003788,2]
[393750133,1762963842040,-151.27,0.00037917,60]
[393750134,1762963842050,-1435.64,0.00037987,30]
[393750135,1762963842060,-2143.0,0.00038003,2]
[393750136,1762963842073,-520.129,0.00038003,2]
[393750137,1762963842082,-6482.0,0.00038003,2]
[393750138,1762963842092,-151.27,0.00038017,60]
[393750139,1762963842101,-151.27,0.00038117,60]
[393750140,1762963842111,-151.27,0.00038217,60]
[393750141,1762963842120,-151.27,0.00038317,60]
[393750142,1762963842130,-308.26157322,0.00038376,2]
[393750143,1762963842140,-151.27,0.00038417,120]
[393750144,1762963842150,-158.43628725,0.00038446,15]
[393750145,1762963842160,-884.21,0.000385,14]
[393750146,1762963842170,-151.27,0.00038517,120]
[393750147,1762963842180,-955.62,0.000386,30]
[393750148,1762963842190,-151.27,0.00038617,120]
[393750149,1762963842199,-166.67,0.00038706,2]
[393750150,1762963842210,-151.27,0.00038717,120]
[393750151,1762963842222,-313.83717125,0.000388,2]
[393750152,1762963842231,-151.27,0.00038817,120]
[393750153,1762963842240,-308.26157322,0.00038871,2]
[393750154,1762963842250,-502.29921572,0.00038873,5]
[393750155,1762963842259,-161.31426345,0.00038873,2]
[393750156,1762963842268,-151.0,0.00038876,2]
[393750157,1762963842278,-151.0,0.00038876,2]
[393750158,1762963842288,-151.0,0.00038876,2]
[393750159,1762963842297,-151.0,0.00038876,2]
[393750160,1762963842307,-151.0,0.00038876,2]
[393750161,1762963842316,-151.0,0.00038876,2]
[393750162,1762963842326,-151.0,0.00038876,2]
[393750163,1762963842336,-151.0,0.00038876,2]
[393750164,1762963842346,-151.0,0.00038876,2]
[393750165,1762963842355,-151.0,0.00038876,2]
[393750166,1762963842364,-151.0,0.00038876,2]
[393750167,1762963842374,-151.0,0.00038876,2]
[393750168,1762963842383,-297.07812464,0.00038876,2]
[393750169,1762963842392,-199.0,0.00038898,7]
[393750170,1762963842402,-409.20659611,0.00038898,20]
[393750171,1762963842411,-500.0,0.00038898,20]
[393750172,1762963842421,-500.0,0.00038898,20]
[393750173,1762963842430,-1006.54897743,0.00038898,30]
[393750174,1762963842439,-420000.0,0.00038899,2]
[393750175,1762963842448,-1100.0,0.000389,14]
[393750176,1762963842458,-186.30637987,0.000389,120]
[393750177,1762963842472,-195.16066104,0.000389,120]
[393750178,1762963842482,-151.27,0.00038917,120]
[393750179,1762963842491,-168.0,0.00038943,2]
[393750180,1762963842501,-151.27,0.00039017,120]
[393750181,1762963842510,-482.0284,0.00039078,2]
[393750182,1762963842520,-158.43628725,0.00039083,15]
[393750183,1762963842529,-515.103265,0.000391,38]
[393750184,1762963842539,-151.27,0.00039117,120]
[393750185,1762963842551,-168.0,0.00039159,2]
[393750186,1762963842565,-1500.0,0.000392,14]
[393750187,1762963842575,-151.27,0.00039217,120]
[393750188,1762963842585,-585.846,0.00039296,2]
[393750189,1762963842598,-205.402,0.00039296,2]
[393750190,1762963842607,-608.0,0.00039296,2]
[393750191,1762963842617,-560.692,0.00039296,2]
[393750192,1762963842627,-861.668,0.00039296,2]
[393750193,1762963842636,-1900.0,0.000393,14]
[393750194,1762963842646,-151.27,0.00039317,120]
[393750195,1762963842656,-308.26157322,0.00039366,2]
[393750196,1762963842666,-300.0,0.000394,14]
[393750197,1762963842675,-151.27,0.00039417,120]
[393750198,1762963842685,-199.0,0.00039446,8]
[393750199,1762963842694,-168.0,0.00039477,2]
[393750200,1762963842704,-300.0,0.000395,14]
[393750201,1762963842718,-151.27,0.00039517,120]
[393750202,1762963842728,-168.0,0.00039528,2]
[393750203,1762963842738,-300.0,0.000396,14]
[393750204,1762963842748,-151.27,0.00039617,120]
[393750205,1762963842758,-1098.05342992,0.00039643,30]
[393750206,1762963842768,-177.14,0.00039644,2]
[393750207,1762963842779,-1207.25,0.00039644,2]
[393750208,1762963842789,-150.0,0.00039644,2]
[393750209,1762963842799,-177.14,0.00039644,2]
[393750210,1762963842810,-1207.25,0.00039644,2]
[393750211,1762963842820,-177.14,0.00039644,2]
[393750212,1762963842830,-177.14,0.00039644,2]
[393750213,1762963842840,-177.14,0.00039644,2]
[393750214,1762963842850,-162.66335237,0.00039656,20]
[393750215,1762963842860,-175.75,0.00039678,2]
[393750216,1762963842870,-150.0,0.00039691,7]
[393750217,1762963842880,-150.0,0.00039691,7]
[393750218,1762963842890,-150.0,0.00039691,7]
[393750219,1762963842899,-150.0,0.00039691,7]
[393750220,1762963842909,-150.0,0.00039691,7]
[393750221,1762963842919,-150.0,0.00039691,7]
[393750222,1762963842928,-150.0,0.00039691,7]
[393750223,1762963842938,-150.0,0.00039691,7]
[393750224,1762963842947,-263.19,0.00039691,7]
[393750225,1762963842956,-884.21,0.000397,14]
[393750226,1762963842969,-300.0,0.000397,14]
[393750227,1762963842979,-151.27,0.00039717,120]
[393750228,1762963842988,-158.43628725,0.00039719,15]
[393750229,1762963842997,-955.62,0.000398,30]
[393750230,1762963843006,-1081.0,0.000398,14]
[393750231,1762963843016,-151.27,0.00039817,120]
[393750232,1762963843027,-308.26157322,0.00039861,2]
[393750234,1762963843036,-151.27,0.00039917,120]
[393750235,1762963843046,-159.84209483,0.00039973,5]
[393750237,1762963843055,-2965.0,0.00039994,5]
[393750239,1762963843066,-199.0,0.00039994,9]
[393750241,1762963843077,-245.04,0.0004,30]
[393750243,1762963843087,-2031.0,0.0004,2]
[393750245,1762963843097,-2031.0,0.0004,2]
[393750246,1762963843107,-2031.0,0.0004,2]
[393750247,1762963843116,-2031.0,0.0004,2]
[393750248,1762963843127,-2031.0,0.0004,2]
[393750249,1762963843137,-2031.0,0.0004,2]
[393750250,1762963843147,-2031.0,0.0004,2]
[393750252,1762963843157,-2031.0,0.0004,2]
[393750254,1762963843168,-2031.0,0.0004,2]
[393750255,1762963843177,-2031.0,0.0004,2]
[393750256,1762963843186,-150.0,0.00040005,120]
[393750257,1762963843195,-151.27,0.00040017,120]
[393750258,1762963843204,-152.23704,0.0004005,2]
[393750259,1762963843216,-500.0,0.00040054,30]
[393750260,1762963843225,-2500.0,0.00040082,14]
[393750261,1762963843239,-2500.0,0.00040091,14]
[393750262,1762963843248,-2500.0,0.00040091,14]
[393750263,1762963843257,-186.30637987,0.000401,120]
[393750264,1762963843268,-2500.0,0.000401,14]
[393750265,1762963843278,-2500.0,0.000401,14]
[393750266,1762963843291,-2500.0,0.00040109,14]
[393750268,1762963843300,-2500.0,0.00040109,14]
[393750271,1762963843310,-151.27,0.00040117,120]
[393750274,1762963843320,-2500.0,0.00040118,14]
[393750278,1762963843329,-2500.0,0.00040118,14]
[393750282,1762963843338,-2500.0,0.00040126,14]
[393750285,1762963843348,-2500.0,0.00040135,14]
[393750288,1762963843356,-2500.0,0.00040144,14]
[393750291,1762963843366,-5000.0,0.00040153,120]
[393750294,1762963843375,-2500.0,0.00040153,14]
[393750297,1762963843384,-2500.0,0.00040162,14]
[393750300,1762963843394,-2500.0,0.0004017,14]
[393750301,1762963843404,-2500.0,0.00040179,14]
[393750302,1762963843413,-2500.0,0.00040188,14]
[393750304,1762963843423,-168.0,0.00040197,2]
[393750305,1762963843432,-500.0,0.00040199,30]
[393750307,1762963843442,-151.27,0.00040217,120]
[393750309,1762963843451,-211.68024456,0.00040227,2]
[393750311,1762963843460,-500.0,0.00040233,30]
[393750313,1762963843474,-500.0,0.00040243,30]
[393750316,1762963843483,-500.0,0.0004025,30]
[393750318,1762963843493,-152.23705,0.0004025,3]
[393750320,1762963843502,-243.99571442,0.00040257,4]
[393750322,1762963843512,-300.0,0.00040262,10]
[393750324,1762963843522,-999.0,0.00040272,120]
[393750326,1762963843532,-1006.54897743,0.00040272,30]
[393750328,1762963843541,-500.0,0.00040273,5]
[393750330,1762963843552,-500.0,0.00040273,20]
[393750332,1762963843562,-202.849016,0.00040273,20]
[393750334,1762963843572,-224.048069,0.00040273,20]
[393750336,1762963843585,-171.884066,0.00040273,20]
[393750338,1762963843595,-188.108585,0.00040273,20]
[393750340,1762963843605,-662.398475,0.00040273,20]
[393750342,1762963843614,-662.398475,0.00040273,20]
[393750344,1762963843624,-500.0,0.00040273,20]
[393750346,1762963843634,-500.0,0.00040273,20]
[393750348,1762963843643,-500.0,0.00040273,20]
[393750349,1762963843654,-500.0,0.00040273,20]
[393750351,1762963843664,-1594.93,0.00040273,20]
[393750352,1762963843674,-1594.93,0.00040273,20]
[393750354,1762963843683,-966.15,0.00040273,20]
[393750356,1762963843693,-966.15,0.00040273,20]
[393750357,1762963843702,-500.0,0.00040273,20]
[393750359,1762963843711,-500.0,0.00040273,20]
[393750360,1762963843725,-529.09218094,0.00040273,30]
[393750362,1762963843734,-500.0,0.00040273,20]
[393750364,1762963843744,-306.21826757,0.00040273,20]
[393750365,1762963843753,-500.0,0.00040273,20]
[393750367,1762963843763,-500.0,0.00040273,20]
[393750368,1762963843772,-500.0,0.00040273,20]
[393750370,1762963843782,-524.58809439,0.00040273,20]
[393750371,1762963843791,-500.0,0.00040273,20]
[393750373,1762963843801,-500.0,0.00040273,20]
[393750374,1762963843810,-500.0,0.00040273,20]
[393750375,1762963843819,-500.0,0.00040273,20]
[393750377,1762963843828,-500.0,0.00040273,20]
[393750379,1762963843838,-500.0,0.00040273,20]
[393750380,1762963843847,-500.0,0.00040273,20]
[393750382,1762963843856,-163.80297359,0.00040273,20]
[393750383,1762963843865,-500.0,0.00040273,20]
[393750385,1762963843875,-500.0,0.00040273,20]
[393750386,1762963843883,-500.0,0.00040273,20]
[393750388,1762963843893,-500.0,0.00040273,20]
[393750389,1762963843903,-160.855024,0.00040273,20]
[393750391,1762963843912,-561.92925317,0.00040273,20]
[393750392,1762963843922,-214.855079,0.00040273,20]
[393750394,1762963843932,-160.855024,0.00040273,20]
[393750396,1762963843941,-510.04237982,0.00040273,20]
[393750398,1762963843951,-500.0,0.00040273,20]
[393750399,1762963843960,-500.0,0.00040273,20]
[393750401,1762963843980,-500.0,0.00040273,20]
[393750402,1762963843989,-500.0,0.00040273,20]
[393750404,1762963843999,-912.817687,0.00040273,20]
[393750405,1762963844007,-912.817687,0.00040273,20]
[393750406,1762963844017,-500.0,0.00040273,20]
[393750407,1762963844026,-500.0,0.00040273,20]
[393750408,1762963844035,-460.0,0.00040273,20]
[393750409,1762963844044,-500.0,0.00040273,20]
[393750410,1762963844054,-500.0,0.00040273,20]
[393750411,1762963844062,-316.70291232,0.00040273,20]
[393750412,1762963844072,-500.0,0.00040273,20]
[393750413,1762963844082,-500.0,0.00040273,20]
[393750414,1762963844091,-500.0,0.00040273,20]
[393750415,1762963844100,-505.82963849,0.00040273,20]
[393750416,1762963844109,-604.658152,0.00040273,20]
[393750417,1762963844118,-500.0,0.00040273,7]
[393750418,1762963844130,-155.54364503,0.00040273,7]
[393750419,1762963844139,-500.0,0.00040273,20]
[393750420,1762963844149,-500.0,0.00040273,20]
[393750421,1762963844158,-305.5142853,0.00040273,20]
[393750422,1762963844167,-500.0,0.00040273,20]